fUSD/lending_fUSD_20250623
["ID","MTS","AMOUNT","RATE_DAILY","PERIOD"]
[367091439,1750654268747,-490.0,0.0003315,7]
[367091440,1750654268757,-490.0,0.0003315,7]
[367091441,1750654268766,-1656.04,0.0003315,7]
[367091442,1750654268775,-490.0,0.0003315,7]
[367091443,1750654268784,-514.99,0.0003315,7]
[367091444,1750654268794,-490.0,0.0003315,7]
[367091445,1750654268803,-2665.79,0.0003315,7]
[367091446,1750654268812,-885.56,0.0003315,7]
[367091447,1750654268821,-785.02,0.0003315,7]
[367091448,1750654268830,-490.0,0.0003315,7]
[367091449,1750654268839,-490.0,0.0003315,7]
[367091450,1750654268848,-490.0,0.0003315,7]
[367091451,1750654268857,-490.0,0.0003315,7]
[367091452,1750654268867,-490.0,0.0003315,7]
[367091453,1750654268876,-656.15,0.0003315,7]
[367091454,1750654268885,-633.15,0.0003315,7]
[367091455,1750654268894,-490.0,0.0003315,7]
[367091456,1750654268903,-490.0,0.0003315,7]
[367091457,1750654268913,-426.14289425,0.0003315,7]
[367091458,1750654268922,-490.0,0.0003315,7]
[367091459,1750654268931,-1111.57,0.0003315,7]
[367091460,1750654268941,-1774.65,0.0003315,7]
[367091461,1750654268950,-490.0,0.0003315,7]
[367091462,1750654268959,-953.77,0.0003315,7]
[367091463,1750654268968,-966.08,0.0003315,7]
[367091464,1750654268978,-2546.38,0.0003315,7]
[367091465,1750654268987,-515.14212021,0.0003315,10]
[367091466,1750654268996,-631.31403888,0.0003315,7]
[367091467,1750654269005,-490.0,0.0003315,7]
[367091468,1750654269014,-490.0,0.0003315,7]
[367091469,1750654269023,-490.0,0.0003315,7]
[367091470,1750654269032,-491.43280661,0.0003315,7]
[367091471,1750654269041,-1696.17,0.0003315,7]
[367091472,1750654269051,-490.0,0.0003315,7]
[367091473,1750654269060,-490.0,0.0003315,7]
[367091474,1750654269070,-1824.82,0.0003315,7]
[367091475,1750654269079,-490.0,0.0003315,7]
[367091476,1750654269089,-1067.51,0.0003315,7]
[367091477,1750654269099,-490.0,0.0003315,7]
[367091478,1750654269108,-490.0,0.0003315,7]
[367091479,1750654269121,-557.494478,0.0003315,7]
[367091480,1750654269130,-557.494478,0.0003315,7]
[367091481,1750654269140,-490.0,0.0003315,7]
[367091482,1750654269149,-490.0,0.0003315,7]
[367091483,1750654269158,-490.0,0.0003315,7]
[367091484,1750654269167,-494.36190764,0.0003315,7]
[367091485,1750654269177,-557.494478,0.0003315,7]
[367091486,1750654269186,-151.0,0.0003315,7]
[367091487,1750654269195,-557.494478,0.0003315,7]
[367091488,1750654269205,-490.0,0.0003315,7]
[367091489,1750654269214,-196.101713,0.0003315,7]
[367091490,1750654269224,-490.0,0.0003315,7]
[367091491,1750654269236,-179.88604116,0.0003315,7]
[367091492,1750654269247,-490.0,0.0003315,7]
[367091493,1750654269259,-151.0,0.0003315,7]
[367091494,1750654269268,-457.32611239,0.0003315,7]
[367091495,1750654269278,-151.0,0.0003315,7]
[367091496,1750654269288,-2058.99,0.0003315,7]
[367091497,1750654269297,-490.0,0.0003315,7]
[367091498,1750654269308,-977.02,0.0003315,7]
[367091499,1750654269318,-1104.85,0.0003315,7]
[367091500,1750654269328,-490.0,0.0003315,7]
[367091501,1750654269337,-716.67,0.0003315,7]
[367091502,1750654269347,-211.82371384,0.0003315,7]
[367091503,1750654269356,-490.0,0.0003315,7]
[367091504,1750654269365,-490.0,0.0003315,7]
[367091505,1750654269466,-490.0,0.0003315,7]
[367091506,1750654269476,-823.0,0.0003315,7]
[367091507,1750654269484,-490.0,0.0003315,7]
[367091508,1750654269493,-1612.0,0.0003315,7]
[367091509,1750654269503,-490.0,0.0003315,7]
[367091510,1750654269512,-490.0,0.0003315,7]
[367091511,1750654269521,-670.47,0.0003315,7]
[367091512,1750654269530,-4636.13,0.0003315,7]
[367091513,1750654269539,-1715.52,0.0003315,7]
[367091514,1750654269548,-791.2,0.0003315,7]
[367091515,1750654269558,-744.34,0.0003315,7]
[367091516,1750654269567,-490.0,0.0003315,7]
[367091517,1750654269576,-359.9063774,0.0003315,7]
[367091518,1750654269585,-1022.88,0.0003315,7]
[367091519,1750654269595,-3235.16,0.0003315,7]
[367091520,1750654269603,-490.0,0.0003315,7]
[367091521,1750654269613,-490.0,0.0003315,7]
[367091522,1750654269622,-961.72,0.0003315,7]
[367091523,1750654269631,-490.0,0.0003315,7]
[367091524,1750654269640,-488.43,0.0003315,7]
[367091525,1750654269649,-490.0,0.0003315,7]
[367091526,1750654269658,-1551.85,0.0003315,7]
[367091527,1750654269667,-772.51,0.0003315,7]
[367091528,1750654269676,-490.0,0.0003315,7]
[367091529,1750654269685,-151.0,0.0003315,7]
[367091530,1750654269694,-151.0,0.0003315,7]
[367091531,1750654269703,-490.0,0.0003315,7]
[367091532,1750654269712,-490.0,0.0003315,7]
[367091533,1750654269722,-490.0,0.0003315,7]
[367091534,1750654269731,-490.0,0.0003315,7]
[367091535,1750654269740,-530.46,0.0003315,7]
[367091536,1750654269749,-4888.75,0.0003315,7]
[367091537,1750654269758,-1651.96,0.0003315,7]
[367091538,1750654269767,-2259.05,0.0003315,7]
[367091539,1750654269776,-1117.64,0.0003315,7]
[367091540,1750654269785,-490.0,0.0003315,7]
[367091541,1750654269794,-885.05,0.0003315,7]
[367091542,1750654269803,-625.32,0.0003315,7]
[367091543,1750654269812,-1548.7,0.0003315,7]
[367091544,1750654269822,-531.31,0.0003315,7]
[367091545,1750654269831,-490.0,0.0003315,7]
[367091546,1750654269840,-588.12474,0.0003315,7]
[367091547,1750654269849,-588.12474,0.0003315,7]
[367091548,1750654269858,-1615.73,0.0003315,7]
[367091549,1750654269867,-490.0,0.0003315,7]
[367091550,1750654269876,-490.0,0.0003315,7]
[367091551,1750654269885,-490.0,0.0003315,7]
[367091552,1750654269894,-588.12474,0.0003315,7]
[367091553,1750654269903,-490.0,0.0003315,7]
[367091554,1750654269913,-588.12474,0.0003315,7]
[367091555,1750654269922,-490.0,0.0003315,7]
[367091556,1750654269931,-420.755357,0.0003315,7]
[367091557,1750654269940,-420.755357,0.0003315,7]
[367091558,1750654269949,-1037.11,0.0003315,7]
[367091559,1750654269959,-490.0,0.0003315,7]
[367091560,1750654269971,-490.0,0.0003315,7]
[367091561,1750654269981,-490.0,0.0003315,7]
[367091562,1750654269991,-901.29,0.0003315,7]
[367091563,1750654270000,-490.0,0.0003315,7]
[367091564,1750654270011,-1986.42,0.0003315,7]
[367091565,1750654270022,-151.0,0.0003315,7]
[367091566,1750654270033,-490.0,0.0003315,7]
[367091567,1750654270051,-420.755357,0.0003315,7]
[367091568,1750654270063,-151.0,0.0003315,7]
[367091569,1750654270073,-151.0,0.0003315,7]
[367091570,1750654270083,-1253.89,0.0003315,7]
[367091571,1750654270093,-420.755357,0.0003315,7]
[367091572,1750654270103,-531.2,0.0003315,7]
[367091573,1750654270116,-3239.4,0.0003315,7]
[367091574,1750654270128,-1079.72,0.0003315,7]
[367091575,1750654270140,-490.0,0.0003315,7]
[367091576,1750654270150,-417.41127677,0.0003315,7]
[367091577,1750654270160,-1733.51,0.0003315,7]
[367091578,1750654270169,-490.0,0.0003315,7]
[367091579,1750654270178,-6885.38,0.0003315,7]
[367091580,1750654270188,-153.150245,0.0003315,7]
[367091581,1750654270199,-490.0,0.0003315,7]
[367091582,1750654270209,-490.0,0.0003315,7]
[367091583,1750654270219,-490.0,0.0003315,7]
[367091584,1750654270230,-236.985107,0.0003315,7]
[367091585,1750654270239,-284.80056714,0.0003315,7]
[367091586,1750654270248,-490.0,0.0003315,7]
[367091587,1750654270258,-490.0,0.0003315,7]
[367091588,1750654270267,-2095.59,0.0003315,7]
[367091589,1750654270277,-490.0,0.0003315,7]
[367091590,1750654270287,-589.1,0.0003315,7]
[367091591,1750654270297,-710.72,0.0003315,7]
[367091592,1750654270306,-490.0,0.0003315,7]
[367091593,1750654270316,-1828.05,0.0003315,7]
[367091594,1750654270326,-151.0,0.0003315,7]
[367091595,1750654270335,-1509.41,0.0003315,7]
[367091596,1750654270345,-151.0,0.0003315,7]
[367091597,1750654270354,-151.0,0.0003315,7]
[367091598,1750654270363,-490.0,0.0003315,7]
[367091599,1750654270372,-1094.4,0.0003315,7]
[367091600,1750654270381,-688.87,0.0003315,7]
[367091601,1750654270391,-11823.47,0.0003315,7]
[367091602,1750654270400,-958.23,0.0003315,7]
[367091603,1750654270410,-340.542459,0.0003315,7]
[367091604,1750654270419,-490.0,0.0003315,7]
[367091605,1750654270429,-2835.83,0.0003315,7]
[367091606,1750654270437,-490.0,0.0003315,7]
[367091607,1750654270446,-490.0,0.0003315,7]
[367091608,1750654270455,-490.0,0.0003315,7]
[367091609,1750654270464,-634.08574993,0.0003315,7]
[367091610,1750654270473,-700.15,0.0003315,7]
[367091611,1750654270482,-663.81,0.0003315,7]
[367091612,1750654270491,-1855.48,0.0003315,7]
[367091613,1750654270501,-1438.05,0.0003315,7]
[367091614,1750654270510,-490.0,0.0003315,7]
[367091615,1750654270519,-508.05,0.0003315,7]
[367091616,1750654270528,-5345.74,0.0003315,7]
[367091617,1750654270537,-490.0,0.0003315,7]
[367091618,1750654270546,-1313.19,0.0003315,7]
[367091619,1750654270555,-490.0,0.0003315,7]
[367091620,1750654270564,-609.17,0.0003315,7]
[367091621,1750654270573,-2328.53,0.0003315,7]
[367091622,1750654270581,-1268.28,0.0003315,7]
[367091623,1750654270591,-2092.4,0.0003315,7]
[367091624,1750654270600,-899.41,0.0003315,7]
[367091625,1750654270608,-1172.27,0.0003315,7]
[367091626,1750654270618,-490.0,0.0003315,7]
[367091627,1750654270627,-666.85,0.0003315,7]
[367091628,1750654270636,-1947.1,0.0003315,7]
[367091629,1750654270644,-490.0,0.0003315,7]
[367091630,1750654270653,-151.0,0.0003315,7]
[367091631,1750654270663,-2023.32,0.0003315,7]
[367091632,1750654270672,-229.66029,0.0003315,7]
[367091633,1750654270681,-490.0,0.0003315,7]
[367091634,1750654270691,-490.0,0.0003315,7]
[367091635,1750654270699,-2594.21,0.0003315,7]
[367091636,1750654270709,-1494.66,0.0003315,7]
[367091637,1750654270718,-519.03,0.0003315,7]
[367091638,1750654270727,-558.0,0.0003315,7]
[367091639,1750654270735,-1421.52,0.0003315,7]
[367091640,1750654270744,-490.0,0.0003315,7]
[367091641,1750654270754,-490.0,0.0003315,7]
[367091642,1750654270763,-554.01,0.0003315,7]
[367091643,1750654270772,-490.0,0.0003315,7]
[367091644,1750654270780,-490.0,0.0003315,7]
[367091645,1750654270790,-524.34,0.0003315,7]
[367091646,1750654270799,-1943.95,0.0003315,7]
[367091647,1750654270808,-1061.09,0.0003315,7]
[367091648,1750654270816,-490.0,0.0003315,7]
[367091649,1750654270825,-490.0,0.0003315,7]
[367091650,1750654270834,-490.0,0.0003315,7]
[367091651,1750654270843,-1909.21,0.0003315,7]
[367091652,1750654270853,-205.88626423,0.0003315,7]
[367091653,1750654270862,-1837.86,0.0003315,7]
[367091654,1750654270871,-490.0,0.0003315,7]
[367091655,1750654270880,-8538.53,0.0003315,7]
[367091656,1750654270889,-490.0,0.0003315,7]
[367091657,1750654270898,-1479.74,0.0003315,7]
[367091658,1750654270908,-490.0,0.0003315,7]
[367091659,1750654270917,-1515.68,0.0003315,7]
[367091660,1750654270926,-2140.8,0.0003315,7]
[367091661,1750654270936,-490.0,0.0003315,7]
[367091662,1750654270947,-490.0,0.0003315,7]
[367091663,1750654270957,-2537.72,0.0003315,7]
[367091664,1750654270968,-1027.94,0.0003315,7]
[367091665,1750654270978,-490.0,0.0003315,7]
[367091666,1750654270988,-838.59,0.0003315,7]
[367091667,1750654270999,-1794.79,0.0003315,7]
[367091668,1750654271008,-490.0,0.0003315,2]
[367091669,1750654271018,-5931.83,0.0003315,7]
[367091670,1750654271029,-1409.99,0.0003315,7]
[367091671,1750654271039,-3543.89,0.0003315,7]
[367091672,1750654271048,-2002.86,0.0003315,7]
[367091673,1750654271058,-490.0,0.0003315,7]
[367091674,1750654271068,-1282.2,0.0003315,7]
[367091675,1750654271078,-2436.5,0.0003315,7]
[367091676,1750654271088,-565.29,0.0003315,7]
[367091677,1750654271098,-1145.23,0.0003315,7]
[367091678,1750654271107,-2134.86,0.0003315,7]
[367091679,1750654271120,-490.0,0.0003315,7]
[367091680,1750654271129,-763.72,0.0003315,7]
[367091681,1750654271138,-1306.64,0.0003315,7]
[367091682,1750654271148,-1490.75,0.0003315,7]
[367091683,1750654271158,-835.97,0.0003315,7]
[367091684,1750654271169,-1689.8,0.0003315,7]
[367091685,1750654271178,-878.53,0.0003315,7]
[367091686,1750654271189,-1942.4,0.0003315,7]
[367091687,1750654271198,-2435.48,0.0003315,7]
[367091688,1750654271208,-563.92,0.0003315,7]
[367091689,1750654271218,-2321.83,0.0003315,7]
[367091690,1750654271228,-2021.27,0.0003315,7]
[367091691,1750654271240,-490.0,0.0003315,7]
[367091692,1750654271249,-490.0,0.0003315,7]
[367091693,1750654271259,-490.0,0.0003315,7]
[367091694,1750654271269,-490.0,0.0003315,7]
[367091695,1750654271278,-832.17,0.0003315,7]
[367091696,1750654271287,-1716.26,0.0003315,7]
[367091697,1750654271297,-490.0,0.0003315,7]
[367091698,1750654271308,-490.0,0.0003315,7]
[367091699,1750654271317,-490.0,0.0003315,7]
[367091700,1750654271327,-490.0,0.0003315,7]
[367091701,1750654271337,-490.0,0.0003315,7]
[367091702,1750654271346,-617.68,0.0003315,7]
[367091703,1750654271356,-1853.29,0.0003315,7]
[367091704,1750654271366,-490.0,0.0003315,7]
[367091705,1750654271375,-490.0,0.0003315,7]
[367091706,1750654271384,-6617.48,0.0003315,7]
[367091707,1750654271394,-490.0,0.0003315,7]
[367091708,1750654271403,-867.55,0.0003315,7]
[367091709,1750654271412,-2580.22,0.0003315,7]
[367091710,1750654271422,-212.7241685,0.0003315,7]
[367091711,1750654271431,-12988.61,0.0003315,7]
[367091712,1750654271440,-490.0,0.0003315,7]
[367091713,1750654271450,-490.0,0.0003315,7]
[367091714,1750654271459,-490.0,0.0003315,7]
[367091715,1750654271468,-739.56,0.0003315,7]
[367091716,1750654271478,-4460.32,0.0003315,7]
[367091717,1750654271487,-490.0,0.0003315,7]
[367091718,1750654271497,-1979.61,0.0003315,7]
[367091719,1750654271506,-490.0,0.0003315,7]
[367091720,1750654271515,-1485.85,0.0003315,7]
[367091721,1750654271525,-1083.46,0.0003315,7]
[367091722,1750654271534,-5524.49,0.0003315,7]
[367091723,1750654271544,-490.0,0.0003315,7]
[367091724,1750654271553,-500.0,0.0003315,7]
[367091725,1750654271562,-651.27,0.0003315,7]
[367091726,1750654271572,-490.0,0.0003315,7]
[367091727,1750654271581,-492.74967002,0.0003315,7]
[367091728,1750654271591,-490.0,0.0003315,7]
[367091729,1750654271600,-490.0,0.0003315,7]
[367091730,1750654271610,-1635.55,0.0003315,7]
[367091731,1750654271619,-490.0,0.0003315,7]
[367091732,1750654271629,-1962.38,0.0003315,7]
[367091733,1750654271638,-699.02,0.0003315,7]
[367091734,1750654271648,-490.0,0.0003315,7]
[367091735,1750654271657,-1166.97,0.0003315,7]
[367091736,1750654271666,-490.0,0.0003315,7]
[367091737,1750654271676,-490.0,0.0003315,7]
[367091738,1750654271686,-16479.57,0.0003315,7]
[367091739,1750654271696,-490.0,0.0003315,7]
[367091740,1750654271706,-3318.43,0.0003315,7]
[367091741,1750654271715,-9584.54,0.0003315,7]
[367091742,1750654271725,-3682.87,0.0003315,7]
[367091743,1750654271734,-987.69,0.0003315,7]
[367091744,1750654271743,-536.48,0.0003315,7]
[367091745,1750654271752,-1774.95,0.0003315,7]
[367091746,1750654271762,-490.0,0.0003315,7]
[367091747,1750654271771,-490.0,0.0003315,7]
[367091748,1750654271781,-490.0,0.0003315,7]
[367091749,1750654271790,-3180.73,0.0003315,7]
[367091750,1750654271799,-490.0,0.0003315,7]
[367091751,1750654271809,-490.0,0.0003315,7]
[367091752,1750654271818,-490.0,0.0003315,7]
[367091753,1750654271827,-878.59,0.0003315,7]
[367091754,1750654271836,-4276.69,0.0003315,7]
[367091755,1750654271846,-490.0,0.0003315,7]
[367091756,1750654271855,-735.74,0.0003315,7]
[367091757,1750654271865,-2258.37,0.0003315,7]
[367091758,1750654271874,-1968.26,0.0003315,7]
[367091759,1750654271884,-1807.52,0.0003315,7]
[367091760,1750654271893,-490.0,0.0003315,7]
[367091761,1750654271902,-490.0,0.0003315,7]
[367091762,1750654271912,-490.0,0.0003315,7]
[367091763,1750654271923,-151.0,0.0003315,7]
[367091764,1750654271933,-863.73,0.0003315,7]
[367091765,1750654271942,-151.0,0.0003315,7]
[367091766,1750654271952,-151.0,0.0003315,7]
[367091767,1750654271963,-514.87,0.0003315,7]
[367091768,1750654271973,-851.79,0.0003315,7]
[367091769,1750654271982,-4217.64,0.0003315,7]
[367091770,1750654271992,-490.0,0.0003315,7]
[367091771,1750654272004,-1781.57,0.0003315,7]
[367091772,1750654272014,-290.567398,0.0003315,7]
[367091773,1750654272023,-2039.85,0.0003315,7]
[367091774,1750654272033,-1996.43,0.0003315,7]
[367091775,1750654272043,-835.17,0.0003315,7]
[367091776,1750654272054,-1167.68,0.0003315,7]
[367091777,1750654272064,-159.411204,0.0003315,7]
[367091778,1750654272074,-490.0,0.0003315,7]
[367091779,1750654272084,-490.0,0.0003315,7]
[367091780,1750654272094,-361.66812109,0.0003315,7]
[367091781,1750654272104,-490.0,0.0003315,7]
[367091782,1750654272117,-1984.15,0.0003315,7]
[367091783,1750654272128,-1730.74,0.0003315,7]
[367091784,1750654272138,-5782.36,0.0003315,7]
[367091785,1750654272148,-583.16,0.0003315,7]
[367091786,1750654272160,-1299.08,0.0003315,7]
[367091787,1750654272170,-490.0,0.0003315,7]
[367091788,1750654272180,-490.0,0.0003315,7]
[367091789,1750654272190,-1851.05,0.0003315,7]
[367091790,1750654272200,-490.0,0.0003315,7]
[367091791,1750654272210,-2155.57,0.0003315,7]
[367091792,1750654272220,-2180.36,0.0003315,7]
[367091793,1750654272230,-1693.56,0.0003315,7]
[367091794,1750654272240,-490.0,0.0003315,7]
[367091795,1750654272250,-1562.37,0.0003315,7]
[367091796,1750654272261,-499.89651226,0.0003315,7]
[367091797,1750654272271,-2056.32,0.0003315,7]
[367091798,1750654272281,-974.07,0.0003315,7]
[367091799,1750654272291,-490.0,0.0003315,7]
[367091800,1750654272301,-502.81724557,0.0003315,7]
[367091801,1750654272310,-1733.62,0.0003315,7]
[367091802,1750654272320,-873.16,0.0003315,7]
[367091803,1750654272330,-1845.26,0.0003315,7]
[367091804,1750654272340,-490.0,0.0003315,7]
[367091805,1750654272350,-647.41,0.0003315,7]
[367091806,1750654272361,-1469.24,0.0003315,7]
[367091807,1750654272370,-1326.79,0.0003315,7]
[367091808,1750654272382,-490.0,0.0003315,2]
[367091809,1750654272391,-490.0,0.0003315,7]
[367091810,1750654272401,-1747.03,0.0003315,7]
[367091811,1750654272411,-1544.69,0.0003315,7]
[367091812,1750654272421,-2054.64,0.0003315,7]
[367091813,1750654272430,-490.0,0.0003315,7]
[367091814,1750654272441,-810.39,0.0003315,7]
[367091815,1750654272451,-933.68,0.0003315,7]
[367091816,1750654272463,-2500.9,0.0003315,7]
[367091817,1750654272472,-1791.95,0.0003315,7]
[367091818,1750654272481,-490.0,0.0003315,7]
[367091819,1750654272491,-425.92,0.0003315,7]
[367091820,1750654272500,-490.0,0.0003315,7]
[367091821,1750654272510,-151.0,0.0003315,7]
[367091822,1750654272519,-4628.77,0.0003315,7]
[367091823,1750654272529,-490.0,0.0003315,7]
[367091824,1750654272538,-151.0,0.0003315,7]
[367091825,1750654272548,-151.0,0.0003315,7]
[367091826,1750654272557,-1577.25,0.0003315,7]
[367091827,1750654272566,-490.0,0.0003315,7]
[367091828,1750654272576,-527.81306199,0.0003315,7]
[367091829,1750654272586,-1475.64,0.0003315,7]
[367091830,1750654272595,-490.0,0.0003315,7]
[367091831,1750654272605,-212.13646848,0.0003315,7]
[367091832,1750654272614,-946.25,0.0003315,7]
[367091833,1750654272624,-1080.2,0.0003315,7]
[367091834,1750654272633,-490.0,0.0003315,7]
[367091835,1750654272643,-490.5691632,0.0003315,7]
[367091836,1750654272652,-490.0,0.0003315,7]
[367091837,1750654272662,-5581.72,0.0003315,7]
[367091838,1750654272672,-867.5,0.0003315,7]
[367091839,1750654272682,-490.0,0.0003315,7]
[367091840,1750654272693,-490.0,0.0003315,7]
[367091841,1750654272702,-1867.5,0.0003315,7]
[367091842,1750654272712,-490.0,0.0003315,7]
[367091843,1750654272721,-2817.35,0.0003315,7]
[367091844,1750654272731,-2899.48,0.0003315,7]
[367091845,1750654272740,-290.0,0.0003315,7]
[367091846,1750654272749,-1251.06,0.0003315,7]
[367091847,1750654272759,-490.0,0.0003315,7]
[367091848,1750654272768,-490.0,0.0003315,7]
[367091849,1750654272778,-1667.65,0.0003315,7]
[367091850,1750654272787,-490.0,0.0003315,7]
[367091851,1750654272796,-490.0,0.0003315,7]
[367091852,1750654272805,-490.0,0.0003315,7]
[367091853,1750654272815,-2082.64,0.0003315,7]
[367091854,1750654272824,-491.82047903,0.0003315,7]
[367091855,1750654272833,-490.0,0.0003315,7]
[367091856,1750654272843,-1163.87,0.0003315,7]
[367091857,1750654272852,-490.0,0.0003315,7]
[367091858,1750654272862,-788.59,0.0003315,7]
[367091859,1750654272871,-490.0,0.0003315,7]
[367091860,1750654272880,-766.4,0.0003315,7]
[367091861,1750654272890,-490.0,0.0003315,7]
[367091862,1750654272899,-3124.09,0.0003315,7]
[367091863,1750654272909,-2165.19,0.0003315,7]
[367091864,1750654272919,-490.0,0.0003315,7]
[367091865,1750654272928,-1465.7,0.0003315,7]
[367091866,1750654272939,-490.0,0.0003315,7]
[367091867,1750654272949,-490.0,0.0003315,7]
[367091868,1750654272961,-13309.13,0.0003315,7]
[367091869,1750654272970,-7426.49,0.0003315,7]
[367091870,1750654272979,-490.0,0.0003315,7]
[367091871,1750654272989,-490.0,0.0003315,7]
[367091872,1750654272999,-1901.1,0.0003315,7]
[367091873,1750654273009,-890.49,0.0003315,7]
[367091874,1750654273019,-1982.24,0.0003315,7]
[367091875,1750654273029,-490.0,0.0003315,7]
[367091876,1750654273040,-1885.34,0.0003315,7]
[367091877,1750654273052,-490.0,0.0003315,7]
[367091878,1750654273063,-837.26,0.0003315,7]
[367091879,1750654273287,-490.0,0.0003315,7]
[367091880,1750654273297,-490.0,0.0003315,7]
[367091881,1750654273307,-490.0,0.0003315,7]
[367091882,1750654273317,-894.13,0.0003315,7]
[367091883,1750654273327,-490.0,0.0003315,7]
[367091884,1750654273336,-490.0,0.0003315,7]
[367091885,1750654273345,-490.0,0.0003315,7]
[367091886,1750654273355,-490.0,0.0003315,7]
[367091887,1750654273364,-1694.58,0.0003315,7]
[367091888,1750654273373,-1293.41,0.0003315,7]
[367091889,1750654273382,-1804.56,0.0003315,7]
[367091890,1750654273392,-454.85880512,0.0003315,7]
[367091891,1750654273402,-490.0,0.0003315,7]
[367091892,1750654273411,-34343.81,0.0003315,7]
[367091893,1750654273421,-605.23,0.0003315,7]
[367091894,1750654273430,-490.0,0.0003315,7]
[367091895,1750654273440,-490.0,0.0003315,7]
[367091896,1750654273450,-490.0,0.0003315,7]
[367091897,1750654273459,-490.0,0.0003315,7]
[367091898,1750654273469,-1888.3,0.0003315,7]
[367091899,1750654273479,-490.0,0.0003315,7]
[367091900,1750654273488,-490.0,0.0003315,7]
[367091901,1750654273497,-8898.26,0.0003315,7]
[367091902,1750654273507,-490.0,0.0003315,7]
[367091903,1750654273516,-490.0,0.0003315,7]
[367091904,1750654273526,-1935.47,0.0003315,7]
[367091905,1750654273535,-1976.08,0.0003315,7]
[367091906,1750654273544,-1276.19,0.0003315,7]
[367091907,1750654273554,-490.0,0.0003315,7]
[367091908,1750654273563,-667.82,0.0003315,7]
[367091909,1750654273572,-490.0,0.0003315,7]
[367091910,1750654273581,-490.0,0.0003315,7]
[367091911,1750654273590,-480.0,0.0003315,7]
[367091912,1750654273599,-490.0,0.0003315,7]
[367091913,1750654273609,-490.0,0.0003315,7]
[367091914,1750654273619,-822.02,0.0003315,7]
[367091915,1750654273628,-1009.86,0.0003315,7]
[367091916,1750654273638,-2029.59,0.0003315,7]
[367091917,1750654273647,-491.74926536,0.0003315,7]
[367091918,1750654273657,-490.0,0.0003315,7]
[367091919,1750654273666,-490.0,0.0003315,7]
[367091920,1750654273675,-2172.01,0.0003315,7]
[367091921,1750654273685,-490.0,0.0003315,7]
[367091922,1750654273695,-490.0,0.0003315,7]
[367091923,1750654273704,-490.0,0.0003315,7]
[367091924,1750654273713,-3430.29,0.0003315,7]
[367091925,1750654273723,-490.0,0.0003315,7]
[367091926,1750654273732,-490.0,0.0003315,7]
[367091927,1750654273742,-490.0,0.0003315,7]
[367091928,1750654273751,-2151.74,0.0003315,7]
[367091929,1750654273760,-202.201633,0.0003315,7]
[367091930,1750654273770,-5336.48,0.0003315,7]
[367091931,1750654273779,-1837.54,0.0003315,7]
[367091932,1750654273789,-202.201633,0.0003315,7]
[367091933,1750654273798,-634.06114308,0.0003315,7]
[367091934,1750654273808,-202.201633,0.0003315,7]
[367091935,1750654273817,-575.19,0.0003315,7]
[367091936,1750654273826,-490.0,0.0003315,7]
[367091937,1750654273836,-490.0,0.0003315,7]
[367091938,1750654273845,-490.0,0.0003315,7]